bitfinex-derivatives/quotes_BTCF0:USTF0_20250930
["timestamp","ask_amount","ask_price","bid_price","bid_amount"]
[1759264801367,0.8832441,114390.0,114380.0,1.38082266]
[1759264801766,0.8832441,114390.0,114380.0,1.30235246]
[1759264803768,0.8832441,114390.0,114380.0,1.38082135]
[1759264808169,0.8832441,114390.0,114380.0,1.29341335]
[1759264808370,0.8832441,114390.0,114380.0,0.93261335]
[1759264809565,0.8832441,114390.0,114380.0,1.02002145]
[1759264810572,0.8832441,114390.0,114380.0,0.93261335]
[1759264811773,0.8832441,114390.0,114380.0,0.11303889]
[1759264811975,0.8832441,114390.0,114380.0,0.93261335]
[1759264813573,0.0878041,114390.0,114380.0,1.38082145]
[1759264813774,0.8830441,114390.0,114380.0,1.38082145]
[1759264814277,0.0878041,114390.0,114380.0,1.38082145]
[1759264814479,0.8830441,114390.0,114380.0,1.38082145]
[1759264815177,0.0878041,114390.0,114380.0,1.38082145]
[1759264815379,0.8830441,114390.0,114380.0,1.38082145]
[1759264815678,0.8830441,114390.0,114380.0,1.30235256]
[1759264816576,0.0878041,114390.0,114380.0,1.30235256]
[1759264816777,0.8830441,114390.0,114380.0,1.30235256]
[1759264817078,0.0878041,114390.0,114380.0,1.30235256]
[1759264817482,0.8830441,114390.0,114380.0,1.30235256]
[1759264817876,0.0878041,114390.0,114380.0,1.30235256]
[1759264818077,0.8830441,114390.0,114380.0,1.30235256]
[1759264818380,0.0878041,114390.0,114380.0,1.30235256]
[1759264818579,0.8830441,114390.0,114380.0,1.30235256]
[1759264819875,0.0878041,114390.0,114380.0,1.30235256]
[1759264820081,0.8830441,114390.0,114380.0,1.30235256]
[1759264822076,0.8830441,114390.0,114380.0,0.94155256]
[1759264822282,0.8830441,114390.0,114380.0,1.30235256]
[1759264822773,0.8830441,114390.0,114380.0,1.41243232]
[1759264827582,0.8830441,114390.0,114380.0,1.30235256]
[1759264827789,0.8830041,114390.0,114380.0,1.30235256]
[1759264828385,0.8830041,114390.0,114380.0,1.41243232]
[1759264829289,0.0878041,114390.0,114380.0,1.41243232]
[1759264829489,0.8830041,114390.0,114380.0,1.41243232]
[1759264830485,0.8830041,114390.0,114380.0,0.59285786]
[1759264830691,0.8830041,114390.0,114380.0,1.41243232]
[1759264831990,0.8830041,114390.0,114380.0,1.32502422]
[1759264833793,0.8830041,114390.0,114380.0,1.41243232]
[1759264834193,0.0878041,114390.0,114380.0,1.41243232]
[1759264834391,0.8829641,114390.0,114380.0,1.41243232]
[1759264841901,0.8829641,114390.0,114380.0,0.50544976]
[1759264842103,1.29275133,114390.0,114380.0,0.14464976]
[1759264842298,1.65355133,114390.0,114380.0,0.14464976]
[1759264842494,1.65355133,114390.0,114380.0,0.55443699]
[1759264842699,1.65355133,114390.0,114380.0,0.44435723]
[1759264843101,1.65355133,114390.0,114380.0,0.52303293]
[1759264843606,1.65355133,114390.0,114380.0,0.1132457]
[1759264843797,1.65355133,114390.0,114380.0,0.52303293]
[1759264844804,1.65355133,114390.0,114380.0,0.0914257]
[1759264845008,2.05355133,114390.0,114380.0,0.12282976]
[1759264845205,2.05355133,114390.0,114380.0,0.14608976]
[1759264846207,2.05355133,114390.0,114380.0,0.03601]
[1759264846706,2.05355133,114390.0,114380.0,0.11466373]
[1759264848106,1.25839133,114390.0,114380.0,0.11466373]
[1759264848306,2.05515563,114390.0,114380.0,0.11466373]
[1759264856312,0.8486041,114390.0,114380.0,0.11466373]
[1759264856511,2.05463563,114390.0,114380.0,0.11466373]
[1759264857013,0.8486041,114390.0,114380.0,0.11466373]
[1759264857213,1.6449241,114390.0,114380.0,0.11466373]
[1759264857405,2.05475563,114390.0,114380.0,0.11466373]
[1759264857609,2.05471563,114390.0,114380.0,0.11466373]
[1759264860217,1.6448841,114390.0,114380.0,0.11466373]
[1759264860411,2.05471563,114390.0,114380.0,0.11466373]
[1759264861717,1.25843563,114390.0,114380.0,0.11466373]
[1759264861918,2.05487563,114390.0,114380.0,0.11466373]
[1759264866515,1.25843563,114390.0,114380.0,0.11466373]
[1759264866714,2.05435563,114390.0,114380.0,0.11466373]
[1759264868421,1.25843563,114390.0,114380.0,0.11466373]
[1759264868611,2.05435563,114390.0,114380.0,0.11466373]
[1759264874415,0.8486041,114390.0,114380.0,0.11466373]
[1759264874732,2.05379563,114390.0,114380.0,0.11466373]
[1759264875524,1.25843563,114390.0,114380.0,0.11466373]
[1759264875724,2.05391563,114390.0,114380.0,0.11466373]
[1759264876524,2.05391563,114390.0,114380.0,0.52449526]
[1759264876923,1.25843563,114390.0,114380.0,0.52449526]
[1759264877124,2.05407563,114390.0,114380.0,0.11466373]
[1759264877423,2.05407563,114390.0,114380.0,0.52449526]
[1759264878830,2.05407563,114390.0,114380.0,0.11466373]
[1759264879224,1.25843563,114390.0,114380.0,0.11466373]
[1759264879529,2.05387563,114390.0,114380.0,0.11466373]
[1759264880230,1.6440441,114390.0,114380.0,0.11466373]
[1759264880430,2.05387563,114390.0,114380.0,0.52449526]
[1759264881330,2.05375563,114390.0,114380.0,0.52449526]
[1759264890438,2.05375563,114390.0,114380.0,0.44584153]
[1759264890636,2.05375563,114390.0,114380.0,0.09144732]
[1759264890842,1.65375563,114390.0,114380.0,0.07869732]
[1759264898139,2.46358716,114390.0,114380.0,0.01480162]
[1759264899042,0.0874155,114370.0,114360.0,0.14611976]
[1759264899336,0.8826955,114370.0,114360.0,0.14611976]
[1759264900236,0.8826955,114370.0,114360.0,0.03604]
[1759264900629,0.0874155,114370.0,114360.0,0.03604]
[1759264901029,0.0874155,114370.0,114360.0,0.44587153]
[1759264901232,0.8826955,114370.0,114360.0,0.44587153]
[1759264902736,0.0874155,114370.0,114360.0,0.44587153]
[1759264902932,0.8827355,114370.0,114360.0,0.44587153]
[1759264904244,0.0874155,114370.0,114360.0,0.44587153]
[1759264904442,0.8827355,114370.0,114360.0,0.44587153]
[1759264905142,0.8827355,114370.0,114360.0,0.55595129]
[1759264905440,0.0874155,114370.0,114360.0,0.55595129]
[1759264905941,0.8826955,114370.0,114360.0,0.55595129]
[1759264910243,1.29261069,114370.0,114360.0,0.55603495]
[1759264915348,1.29261069,114370.0,114360.0,0.14611976]
[1759264915548,1.29261069,114370.0,114360.0,0.55603495]
[1759264917151,0.49733069,114370.0,114360.0,0.55603495]
[1759264917648,1.29257069,114370.0,114360.0,0.55603495]
[1759264918650,0.49733069,114370.0,114360.0,0.55603495]
[1759264918851,1.29257069,114370.0,114360.0,0.55603495]
[1759264919446,0.0874155,114370.0,114360.0,0.55603495]
[1759264919653,1.29257069,114370.0,114360.0,0.96595014]
[1759264920150,0.0874155,114370.0,114360.0,0.96595014]
[1759264920352,1.29257069,114370.0,114360.0,0.96595014]
[1759264920847,0.49733069,114370.0,114360.0,0.96595014]
[1759264921046,1.29257069,114370.0,114360.0,0.96595014]
[1759264921247,0.0874155,114370.0,114360.0,0.96595014]
[1759264921448,1.29257069,114370.0,114360.0,0.96595014]
[1759264922551,0.49733069,114370.0,114360.0,0.96595014]
[1759264922756,1.29257069,114370.0,114360.0,0.96595014]
[1759264922957,0.49733069,114370.0,114360.0,0.96595014]
[1759264923158,1.29257069,114370.0,114360.0,0.96595014]
[1759264923858,1.29257069,114370.0,114360.0,0.85587038]
[1759264926062,1.29257069,114370.0,114360.0,0.96595014]
[1759264926361,1.29253069,114370.0,114360.0,0.96595014]
[1759264927561,0.0874155,114370.0,114360.0,0.96595014]
[1759264928062,0.8826155,114370.0,114360.0,0.96595014]
[1759264929772,0.8826155,114370.0,114360.0,1.32675014]
[1759264931072,0.8826155,114370.0,114360.0,0.50691976]
[1759264931371,0.8826155,114370.0,114360.0,1.32675014]
[1759264933671,0.06752132,114370.0,114360.0,1.30409308]
[1759264933972,0.86268132,114370.0,114360.0,1.30409308]
[1759264938078,0.86268132,114370.0,114360.0,1.21667038]
[1759264938677,0.86268132,114370.0,114360.0,1.32681858]
[1759264939373,1.27259651,114370.0,114360.0,1.32681858]
[1759264939978,1.27259651,114370.0,114360.0,0.96601858]
[1759264940278,0.86268132,114370.0,114360.0,0.96601858]
[1759264942079,1.27259651,114370.0,114360.0,0.96601858]
[1759264943781,0.86268132,114370.0,114360.0,0.96601858]
[1759264944382,1.27259651,114370.0,114360.0,0.96601858]
[1759264949072,0.47743651,114370.0,114360.0,0.96601858]
[1759264949277,1.27251651,114370.0,114360.0,0.96601858]
[1759264953382,1.27251651,114370.0,114360.0,0.1461882]
[1759264953583,0.86260132,114370.0,114360.0,0.1461882]
[1759264953776,1.27251651,114370.0,114360.0,0.96601858]
[1759264953983,1.27251651,114370.0,114360.0,0.55610339]
[1759264954585,1.27251651,114370.0,114360.0,0.1461882]
[1759264954789,1.63331651,114370.0,114360.0,0.55610339]
[1759264954988,2.03331651,114370.0,114360.0,0.22487488]
[1759264955585,2.03331651,114370.0,114360.0,0.11472668]
[1759264958187,2.04211,114370.0,114360.0,0.11472668]
[1759264958885,2.03331651,114370.0,114360.0,0.11472668]
[1759264959482,1.63331651,114370.0,114360.0,0.11472668]
[1759264959996,1.6418699,114370.0,114360.0,0.11472668]
[1759264960789,1.63327651,114370.0,114360.0,0.11472668]
[1759264961778,0.83823651,114370.0,114360.0,0.11472668]
[1759264961987,1.63327651,114370.0,114360.0,0.11472668]
[1759264963088,1.64195784,114370.0,114360.0,0.11472668]
[1759264963592,1.86353303,114370.0,114360.0,0.04771678]
[1759264963789,4.43177303,114370.0,114360.0,0.04771678]
[1759264965492,1.86353303,114370.0,114360.0,0.04771678]
[1759264965693,4.43181303,114370.0,114360.0,0.04771678]
[1759264966289,0.0874227,114360.0,114350.0,0.12285434]
[1759264966495,2.06309308,114360.0,114350.0,0.14440434]
[1759264966793,1.26805308,114360.0,114350.0,0.03425614]
[1759264966995,2.06309308,114360.0,114350.0,0.03425614]
[1759264967795,1.26805308,114360.0,114350.0,0.03425614]
[1759264967995,2.06309308,114360.0,114350.0,0.03425614]
[1759264969000,2.06309308,114360.0,114350.0,0.01270614]
[1759264969293,2.06309308,114360.0,114350.0,0.03460614]
[1759264970190,0.85827028,114360.0,114350.0,0.03460614]
[1759264970387,1.65331028,114360.0,114350.0,0.03460614]
[1759264972502,1.65331028,114360.0,114350.0,0.11318511]
[1759264974803,0.85827028,114360.0,114350.0,0.11318511]
[1759264975401,1.65327028,114360.0,114350.0,0.11318511]
[1759264975600,0.85827028,114360.0,114350.0,0.11318511]
[1759264975798,1.65331028,114360.0,114350.0,0.11318511]
[1759264977508,1.65327028,114360.0,114350.0,0.11318511]
[1759264978202,0.85827028,114360.0,114350.0,0.11318511]
[1759264978404,1.65327028,114360.0,114350.0,0.11318511]
[1759264985010,0.85827028,114360.0,114350.0,0.11318511]
[1759264985316,0.4482227,114360.0,114350.0,0.11318511]
[1759264985523,0.85827028,114360.0,114350.0,0.52323269]
[1759264985714,1.2432227,114360.0,114350.0,0.52323269]
[1759264985913,0.4482227,114360.0,114350.0,0.52323269]
[1759264986219,0.8823827,114360.0,114350.0,0.80545372]
[1759264986521,0.0874227,114360.0,114350.0,0.91560192]
[1759264986722,0.8827827,114360.0,114350.0,0.91560192]
[1759264987421,0.0878227,114360.0,114350.0,0.91560192]
[1759264987621,0.8827827,114360.0,114350.0,0.91560192]
[1759264988226,0.8827827,114360.0,114350.0,0.80545372]
[1759264988720,0.8827827,114360.0,114350.0,0.91560192]
[1759264989422,0.0878227,114360.0,114350.0,0.91560192]
[1759264989623,0.0878227,114360.0,114350.0,1.40303222]
[1759264989819,0.8827827,114360.0,114350.0,1.40303222]
[1759264990022,0.8827827,114360.0,114350.0,1.28406943]
[1759264992024,0.8827827,114360.0,114350.0,1.37149963]
[1759264994525,0.0878227,114360.0,114350.0,1.37149963]
[1759264994727,0.8827427,114360.0,114350.0,1.37149963]
[1759264996529,0.8827027,114360.0,114350.0,1.29288392]
[1759264997230,0.0878227,114360.0,114350.0,1.29288392]
[1759264997532,0.8827027,114360.0,114350.0,1.29288392]
[1759265000234,0.8827027,114360.0,114350.0,1.40303212]
[1759265000935,0.0878227,114360.0,114350.0,1.40303212]
[1759265001137,0.8827027,114360.0,114350.0,1.40303212]
[1759265006643,0.0878227,114360.0,114350.0,1.40303212]
[1759265006940,0.8826227,114360.0,114350.0,1.40303212]
[1759265008032,0.0878227,114360.0,114350.0,1.40303212]
[1759265008233,0.8826227,114360.0,114350.0,1.40303212]
[1759265008937,0.8826227,114360.0,114350.0,1.29288392]
[1759265010042,0.0878227,114360.0,114350.0,1.29288392]
[1759265010241,0.0878226,114360.0,114350.0,1.40303212]
[1759265010436,0.8825826,114360.0,114350.0,1.40303212]
[1759265010636,0.8821826,114360.0,114350.0,1.37152575]
[1759265011341,0.8825826,114360.0,114350.0,1.37152575]
[1759265015847,0.74463033,114360.0,114350.0,1.37152575]
[1759265016049,0.83205293,114360.0,114350.0,1.29288392]
[1759265017149,0.83205293,114360.0,114350.0,0.88283634]
[1759265017350,0.83205293,114360.0,114350.0,1.29288392]
[1759265019454,0.83205293,114360.0,114350.0,0.80545372]
[1759265019655,0.83205293,114360.0,114350.0,0.89288362]
[1759265022957,0.0878226,114360.0,114350.0,0.89288362]
[1759265023156,0.8824626,114360.0,114350.0,0.89288362]
[1759265024859,0.8824626,114360.0,114350.0,1.25368362]
[1759265025159,0.0878226,114360.0,114350.0,1.25368362]
[1759265025359,0.8824226,114360.0,114350.0,1.25368362]
[1759265025961,0.8824226,114360.0,114350.0,1.36381716]
[1759265026853,0.8824226,114360.0,114350.0,1.25368362]
[1759265027656,0.8824226,114360.0,114350.0,0.84363604]
[1759265027861,0.8824226,114360.0,114350.0,1.25368362]
[1759265029462,0.86252841,114360.0,114350.0,1.25368362]
[1759265030659,0.7946,114360.0,114350.0,1.25368362]
[1759265032264,0.7946,114360.0,114350.0,1.66339598]
[1759265036871,0.8820222,114360.0,114350.0,1.66339598]
[1759265037775,0.0874222,114360.0,114350.0,1.66339598]
[1759265037964,0.49810047,114370.0,114360.0,0.1223822]
[1759265038166,0.86690047,114370.0,114360.0,1.41305173]
[1759265039962,1.29262047,114370.0,114360.0,1.41305173]
[1759265040166,0.0882205,114370.0,114360.0,1.41305173]
[1759265040368,1.29258047,114370.0,114360.0,1.41305173]
[1759265041774,0.8827005,114370.0,114360.0,1.41305173]
[1759265042172,1.29258047,114370.0,114360.0,1.41305173]
[1759265043569,0.8827005,114370.0,114360.0,1.41305173]
[1759265043769,1.29258047,114370.0,114360.0,1.30294214]
[1759265044873,0.8827005,114370.0,114360.0,1.30294214]
[1759265045074,1.29258047,114370.0,114360.0,1.30294214]
[1759265045274,1.29254047,114370.0,114360.0,1.30294214]
[1759265046279,0.49810047,114370.0,114360.0,1.30294214]
[1759265046476,1.29254047,114370.0,114360.0,1.30294214]
[1759265046677,0.49810047,114370.0,114360.0,1.30294214]
[1759265046877,0.8826605,114370.0,114360.0,1.30294214]
[1759265051379,0.8826605,114370.0,114360.0,1.3816092]
[1759265053274,0.8826605,114370.0,114360.0,1.30294214]
[1759265053879,0.8826605,114370.0,114360.0,1.41305173]
[1759265057579,0.8826605,114370.0,114360.0,1.32562953]
[1759265057778,1.29254047,114370.0,114360.0,1.32562953]
[1759265058175,1.29254047,114370.0,114360.0,0.14506959]
[1759265058474,1.65334047,114370.0,114360.0,0.03496]
[1759265058677,1.29254047,114370.0,114360.0,0.03496]
[1759265060283,1.29254047,114370.0,114360.0,0.14506959]
[1759265061183,1.29254047,114370.0,114360.0,0.03496]
[1759265061982,1.29254047,114370.0,114360.0,0.14506959]
[1759265062388,1.29254047,114370.0,114360.0,0.03496]
[1759265066388,0.49810047,114370.0,114360.0,0.03496]
[1759265066687,1.29242047,114370.0,114360.0,0.03496]
[1759265066889,1.29242047,114370.0,114360.0,0.44483997]
[1759265067688,1.29242047,114370.0,114360.0,0.01261]
[1759265069489,1.29242047,114370.0,114360.0,0.03509]
[1759265069990,0.49810047,114370.0,114360.0,0.03509]
[1759265070190,1.29238047,114370.0,114360.0,0.03509]
[1759265070689,0.0882205,114370.0,114360.0,0.44496997]
[1759265070885,1.29238047,114370.0,114360.0,0.44496997]
[1759265071988,1.29238047,114370.0,114360.0,0.55507956]
[1759265072583,1.29238047,114370.0,114360.0,0.14519959]
[1759265072783,0.89810047,114370.0,114360.0,0.01261]
[1759265072983,0.0874222,114360.0,114350.0,0.9159757]
[1759265073184,1.26798214,114360.0,114350.0,0.14529573]
[1759265073786,2.07792911,114360.0,114350.0,0.05644276]
[1759265074087,0.08743,114350.0,114340.0,0.15636039]
[1759265074280,0.0874453,114330.0,114320.0,0.59933851]
[1759265074487,0.8816853,114330.0,114320.0,1.00921848]
[1759265074693,0.8816853,114330.0,114320.0,1.41909845]
[1759265074886,0.8816853,114330.0,114320.0,1.21582994]
[1759265075093,0.86178599,114330.0,114320.0,1.21582994]
[1759265075791,0.86178599,114330.0,114320.0,1.28447286]
[1759265076296,0.06754599,114330.0,114320.0,1.28447286]
[1759265076490,0.86178599,114330.0,114320.0,1.28447286]
[1759265077292,0.06754599,114330.0,114320.0,1.29336378]
[1759265077492,0.86194599,114330.0,114320.0,1.29336378]
[1759265078393,0.06754599,114330.0,114320.0,1.29336378]
[1759265078594,0.49732167,114340.0,114330.0,0.03527]
[1759265078894,1.29168167,114340.0,114330.0,0.52370025]
[1759265080490,0.49732167,114340.0,114330.0,0.52370025]
[1759265080692,1.29164167,114340.0,114330.0,0.52370025]
[1759265082096,0.49732167,114340.0,114330.0,0.52370025]
[1759265082299,1.29164167,114340.0,114330.0,0.88450025]
[1759265084696,1.29164167,114340.0,114330.0,0.80594997]
[1759265085298,1.29168167,114340.0,114330.0,0.80594997]
[1759265086507,0.49732167,114340.0,114330.0,0.80594997]
[1759265086802,1.29172167,114340.0,114330.0,0.89339507]
[1759265087904,0.49732167,114340.0,114330.0,0.44514997]
[1759265088105,1.65252167,114340.0,114330.0,0.03527]
[1759265088306,1.65252167,114340.0,114330.0,0.44514997]
[1759265088500,1.29172167,114340.0,114330.0,0.44514997]
[1759265089002,0.49732167,114340.0,114330.0,0.44514997]
[1759265089203,1.29172167,114340.0,114330.0,0.44514997]
[1759265090403,0.49732167,114340.0,114330.0,0.44514997]
[1759265090798,1.29176167,114340.0,114330.0,0.44514997]
[1759265091701,0.49732167,114340.0,114330.0,0.44514997]
[1759265091904,1.29176167,114340.0,114330.0,0.44514997]
[1759265092305,1.29202323,114340.0,114330.0,0.03527]
[1759265093306,0.49758323,114340.0,114330.0,0.03527]
[1759265093503,1.29202323,114340.0,114330.0,0.03527]
[1759265093704,0.8818817,114340.0,114330.0,0.03527]
[1759265093908,1.29202323,114340.0,114330.0,0.03527]
[1759265096110,1.49872323,114340.0,114330.0,0.03527]
[1759265097413,1.0885817,114340.0,114330.0,0.03527]
[1759265097609,1.49872323,114340.0,114330.0,0.03527]
[1759265100209,0.2941417,114340.0,114330.0,0.1227151]
[1759265100410,1.49872323,114340.0,114330.0,0.1227151]
[1759265100605,0.70428323,114340.0,114330.0,0.1227151]
[1759265100906,1.49872323,114340.0,114330.0,0.03527]
[1759265103713,1.49872323,114340.0,114330.0,0.1227152]
[1759265105117,0.70428323,114340.0,114330.0,0.1227152]
[1759265105318,1.49872323,114340.0,114330.0,0.1227152]
[1759265105914,0.70428323,114340.0,114330.0,0.1227152]
[1759265106314,1.49872323,114340.0,114330.0,0.1227152]
[1759265106516,1.49872323,114340.0,114330.0,0.03527]
[1759265111519,1.49872323,114340.0,114330.0,0.1227152]
[1759265111723,1.49872323,114340.0,114330.0,0.03527]
[1759265113424,0.70428323,114340.0,114330.0,0.14514526]
[1759265114026,1.49872323,114340.0,114330.0,0.14514526]
[1759265114523,1.49872323,114340.0,114330.0,0.22386602]
[1759265114726,1.49872323,114340.0,114330.0,0.11399076]
[1759265115222,0.4482351,114350.0,114340.0,0.1234376]
[1759265115428,1.8612137,114360.0,114350.0,0.1234299]
[1759265115625,2.6556537,114360.0,114350.0,0.61229219]
[1759265115822,2.6560537,114360.0,114350.0,0.61229219]
[1759265117433,2.6560537,114360.0,114350.0,0.20215066]
[1759265117619,2.6560537,114360.0,114350.0,0.61229219]
[1759265118232,2.6560537,114360.0,114350.0,0.97309219]
[1759265118428,2.6560537,114360.0,114350.0,0.89437143]
[1759265120133,2.6560537,114360.0,114350.0,0.53357143]
[1759265122030,2.6560537,114360.0,114350.0,0.89437143]
[1759265122234,2.6560537,114360.0,114350.0,0.4842299]
[1759265122424,2.6560537,114360.0,114350.0,0.1234299]
[1759265122626,2.6560537,114360.0,114350.0,0.53357143]
[1759265124635,0.0878937,114360.0,114350.0,0.53357143]
[1759265124835,0.8850137,114360.0,114350.0,0.53357143]
[1759265127838,0.8850137,114360.0,114350.0,0.61229219]
[1759265128039,0.8847337,114360.0,114350.0,0.61229219]
[1759265128440,0.0878937,114360.0,114350.0,0.61229219]
[1759265128637,0.0878887,114360.0,114350.0,1.37309219]
[1759265128832,0.8849687,114360.0,114350.0,1.37309219]
[1759265129034,0.8845687,114360.0,114350.0,1.37309219]
[1759265129338,0.8849687,114360.0,114350.0,1.37309219]
[1759265130833,0.8849687,114360.0,114350.0,0.96295066]
[1759265131149,0.8849687,114360.0,114350.0,1.37309219]
[1759265137034,0.8849687,114360.0,114350.0,0.96295066]
[1759265137234,0.8849687,114360.0,114350.0,1.37309219]
[1759265137437,0.8849687,114360.0,114350.0,0.96295066]
[1759265137637,0.8849687,114360.0,114350.0,1.37309219]
[1759265137845,0.8843687,114360.0,114350.0,1.37309219]
[1759265139145,0.8843687,114360.0,114350.0,1.48296745]
[1759265139443,0.8843687,114360.0,114350.0,1.00424669]
[1759265140443,0.8843687,114360.0,114350.0,0.59410516]
[1759265140644,0.8843687,114360.0,114350.0,1.00424669]
[1759265141848,0.0878887,114360.0,114350.0,1.00424669]
[1759265142446,0.8842487,114360.0,114350.0,1.00424669]
[1759265150051,0.8842487,114360.0,114350.0,0.89437143]
[1759265151948,1.29439023,114360.0,114350.0,0.3968]
[1759265152248,1.29439023,114360.0,114350.0,0.47537288]
[1759265153448,1.29367023,114360.0,114350.0,0.47537288]
[1759265154352,1.29353083,114360.0,114350.0,0.88537501]
[1759265154647,1.29353083,114360.0,114350.0,0.47537288]
[1759265154948,1.29353083,114360.0,114350.0,0.88537501]
[1759265157252,0.49789083,114360.0,114350.0,0.88537501]
[1759265157448,1.29373083,114360.0,114350.0,0.88537501]
[1759265158152,1.29373083,114360.0,114350.0,0.80680213]
[1759265159144,0.8837287,114360.0,114350.0,0.80680213]
[1759265159348,1.29373083,114360.0,114350.0,0.80680213]
[1759265159648,0.0878887,114360.0,114350.0,0.80680213]
[1759265159949,1.29377083,114360.0,114350.0,0.80680213]
[1759265160254,0.8837687,114360.0,114350.0,0.91667739]
[1759265160649,1.29377083,114360.0,114350.0,0.91667739]
[1759265161457,1.29377083,114360.0,114350.0,0.88540974]
[1759265161954,0.49789083,114360.0,114350.0,0.88540974]
[1759265162156,0.0878887,114360.0,114350.0,0.88540974]
[1759265162352,1.29501083,114360.0,114350.0,0.88540974]
[1759265164757,0.49789083,114360.0,114350.0,0.88540974]
[1759265164957,1.29529083,114360.0,114350.0,0.88540974]
[1759265168855,1.29529083,114360.0,114350.0,0.47540761]
[1759265169057,0.8849287,114360.0,114350.0,0.88540974]
[1759265169456,1.29493083,114360.0,114350.0,0.88540974]
[1759265171164,1.29493083,114360.0,114350.0,0.80680213]
[1759265171461,1.29517083,114360.0,114350.0,0.91667739]
[1759265172165,0.8851687,114360.0,114350.0,0.91667739]
[1759265177168,0.0878887,114360.0,114350.0,1.41410892]
[1759265177559,0.8873287,114360.0,114350.0,1.41410892]
[1759265177760,0.8877287,114360.0,114350.0,1.41410892]
[1759265177959,0.8878087,114360.0,114350.0,1.41410892]
[1759265178163,0.8878087,114360.0,114350.0,0.59410466]
[1759265178463,0.8878087,114360.0,114350.0,1.41410892]
[1759265179163,0.0873991,114390.0,114380.0,0.03584]
[1759265179358,0.0873991,114390.0,114380.0,1.21664426]
[1759265179359,0.8872791,114390.0,114380.0,1.21664426]
[1759265179767,0.8876791,114390.0,114380.0,1.21664426]
[1759265180061,0.08784816,114390.0,114380.0,1.30405066]
[1759265180265,0.08784816,114390.0,114380.0,1.71405279]
[1759265180471,0.88764816,114390.0,114380.0,1.38270617]
[1759265180660,0.88720816,114390.0,114380.0,1.41416838]
[1759265180865,0.88760816,114390.0,114380.0,1.41416838]
[1759265181060,0.80020906,114390.0,114380.0,1.82417051]
[1759265181363,0.80020906,114390.0,114380.0,1.38267674]
[1759265182160,0.80020906,114390.0,114380.0,1.45142349]
[1759265182362,0.80020906,114390.0,114380.0,1.46017938]
[1759265183665,0.80020906,114390.0,114380.0,1.3815533]
[1759265183865,0.80008906,114390.0,114380.0,2.30167315]
[1759265184064,0.79968906,114390.0,114380.0,2.30167315]
[1759265184264,0.80008906,114390.0,114380.0,2.30167315]
[1759265184561,0.00044906,114390.0,114380.0,2.30167315]
[1759265184862,1.8620927,114430.0,114420.0,0.03584]
[1759265185068,2.3247327,114430.0,114420.0,0.85584426]
[1759265185271,2.3251327,114430.0,114420.0,0.85584426]
[1759265185471,2.73513483,114430.0,114420.0,0.44584213]
[1759265186163,2.73513483,114430.0,114420.0,0.10698776]
[1759265186363,2.73513483,114430.0,114420.0,0.51698989]
[1759265186565,2.3251327,114430.0,114420.0,0.51698989]
[1759265186768,2.73513483,114430.0,114420.0,0.51698989]
[1759265187570,2.3251327,114430.0,114420.0,0.10698776]
[1759265187769,2.73513483,114430.0,114420.0,0.51698989]
[1759265188565,2.73513483,114430.0,114420.0,0.52563703]
[1759265189276,2.73513483,114430.0,114420.0,0.5638107]
[1759265189277,0.0004,114430.0,114420.0,0.5638107]
[1759265189475,0.8872082,114430.0,114420.0,0.2030107]
[1759265189671,0.79944,114430.0,114420.0,1.02301496]
[1759265189870,0.79984,114430.0,114420.0,1.38381496]
[1759265190072,0.8868082,114430.0,114420.0,1.38381496]
[1759265190269,1.29721033,114430.0,114420.0,0.88643703]
[1759265190780,1.29721033,114430.0,114420.0,0.46778776]
[1759265191075,0.8872082,114430.0,114420.0,0.87778989]
[1759265191281,1.29721033,114430.0,114420.0,0.87778989]
[1759265191463,0.8872082,114430.0,114420.0,0.87778989]
[1759265191667,1.29721033,114430.0,114420.0,0.87778989]
[1759265193681,1.29721033,114430.0,114420.0,0.46778776]
[1759265193972,2.46801246,114430.0,114420.0,0.10698776]
[1759265194173,2.46801246,114430.0,114420.0,0.08491776]
[1759265194376,2.05801033,114430.0,114420.0,0.08491776]
[1759265194773,2.05801033,114430.0,114420.0,0.10698776]
[1759265195484,0.89777033,114430.0,114420.0,0.19436356]
[1759265195776,1.69997033,114430.0,114420.0,0.96516569]
[1759265195976,1.2899282,114430.0,114420.0,0.60436569]
[1759265196178,1.69993033,114430.0,114420.0,0.96516569]
[1759265196374,1.69993033,114430.0,114420.0,0.55516356]
[1759265196575,1.69993033,114430.0,114420.0,0.96516569]
[1759265196879,0.89777033,114430.0,114420.0,0.96516569]
[1759265197280,1.70001033,114430.0,114420.0,0.96516569]
[1759265198380,1.69993033,114430.0,114420.0,0.46778776]
[1759265198575,1.69993033,114430.0,114420.0,0.87778989]
[1759265199173,1.69993033,114430.0,114420.0,0.46778776]
[1759265199374,1.69993033,114430.0,114420.0,0.87778989]
[1759265199580,1.29993033,114430.0,114420.0,0.87778989]
[1759265200375,1.29993033,114430.0,114420.0,0.46778776]
[1759265200575,1.29993033,114430.0,114420.0,0.87778989]
[1759265200782,1.29993033,114430.0,114420.0,0.46778776]
[1759265200976,1.29993033,114430.0,114420.0,0.5305456]
[1759265201784,1.29993033,114430.0,114420.0,0.94054773]
[1759265202778,1.2507282,114430.0,114420.0,0.1697456]
[1759265203084,1.66073033,114430.0,114420.0,0.10698776]
[1759265204577,1.66073033,114430.0,114420.0,0.1697456]
[1759265209789,0.85857033,114430.0,114420.0,0.1697456]
[1759265209988,1.2505682,114430.0,114420.0,0.1697456]
[1759265210191,1.66057033,114430.0,114420.0,0.1697456]
[1759265211883,1.66057033,114430.0,114420.0,0.1476756]
[1759265212090,2.47057246,114430.0,114420.0,0.06275784]
[1759265214188,2.06018782,114430.0,114420.0,0.06275784]
[1759265215192,2.06018782,114430.0,114420.0,4e-08]
[1759265215585,2.46980744,114430.0,114420.0,4e-08]
[1759265215786,2.06018782,114430.0,114420.0,4e-08]
[1759265216392,0.0873835,114410.0,114400.0,0.12280622]
[1759265216694,1.29900312,114410.0,114400.0,0.04435892]
[1759265216885,0.8893435,114410.0,114400.0,0.04435892]
[1759265217389,0.0873835,114410.0,114400.0,0.04435892]
[1759265217592,0.8893435,114410.0,114400.0,0.04435892]
[1759265217792,0.0873835,114410.0,114400.0,0.04435892]
[1759265217982,0.8894635,114410.0,114400.0,0.04435892]
[1759265218388,0.8895835,114410.0,114400.0,0.04435892]
[1759265218591,1.29920312,114410.0,114400.0,0.04435892]
[1759265218889,1.29916312,114410.0,114400.0,0.04435892]
[1759265219090,0.8895435,114410.0,114400.0,0.04435892]
[1759265219489,0.0873835,114410.0,114400.0,0.04435892]
[1759265219690,0.8896635,114410.0,114400.0,0.04435892]
[1759265220196,1.29928312,114410.0,114400.0,0.03572]
[1759265220493,0.8897435,114410.0,114400.0,0.03572]
[1759265221891,0.0873835,114410.0,114400.0,0.04467015]
[1759265222089,1.29944312,114410.0,114400.0,0.04467015]
[1759265222290,0.0873835,114410.0,114400.0,0.45428977]
[1759265222692,0.8900635,114410.0,114400.0,0.81508977]
[1759265223094,0.8900635,114410.0,114400.0,0.89353707]
[1759265223290,0.8903035,114410.0,114400.0,0.89353707]
[1759265224398,0.0873835,114410.0,114400.0,0.89353707]
[1759265224800,0.8904635,114410.0,114400.0,0.89353707]
[1759265224995,0.0873835,114410.0,114400.0,0.89353707]